fUSD/lending_fUSD_20250322
["ID","MTS","AMOUNT","RATE_DAILY","PERIOD"]
[356555214,1742655032102,-556.15,0.0004098,120]
[356555215,1742655032111,-153.22,0.00041124,2]
[356555216,1742655032121,-555.91,0.00041318,2]
[356555217,1742655032130,-2093.3,0.00041367,2]
[356555218,1742655032139,-167.99,0.00041895,2]
[356555219,1742655032311,-772.25,0.00042002,2]
[356555220,1742655032321,-23900.0,0.00042232,2]
[356555221,1742655032331,-150.0,0.00042946,7]
[356555222,1742655032342,-1491.25,0.00043059,120]
[356555223,1742655032352,-1000.0,0.00043372,2]
[356555224,1742655032363,-5782.27490883,0.00043544,2]
[356555225,1742655032372,-555.91,0.00043582,2]
[356555226,1742655032382,-1441.82,0.00043835,120]
[356555227,1742655032391,-283.11,0.00043914,120]
[356555228,1742655032401,-241.48,0.0004399,2]
[356555229,1742655032411,-211.86216313,0.00043999,61]
[356555230,1742655032420,-209393.09241071,0.00043999,39]
[356555231,1742655032430,-10000.0,0.00044,14]
[356555232,1742655032441,-423.8046,0.00044189,2]
[356555233,1742655032451,-172.18759977,0.00044189,28]
[356555234,1742655032462,-9584.89978617,0.0004419,15]
[356555235,1742655032471,-9406.30914162,0.0004427,15]
[356555236,1742655032481,-15131.1924147,0.00044279,3]
[356555237,1742655032490,-5043.73080489,0.00044279,3]
[356555238,1742655032500,-4561.4137,0.0004428,2]
[356555239,1742655032509,-656.603,0.0004428,2]
[356555240,1742655032519,-1000.0,0.0004428,2]
[356555241,1742655032528,-573.66854986,0.00044289,16]
[356555242,1742655032537,-17135.0168,0.00044289,2]
[356555243,1742655032546,-165.9,0.00044317,2]
[356555244,1742655032556,-5043.73080489,0.00044352,3]
[356555245,1742655032565,-10087.4616098,0.0004436,3]
[356555246,1742655032575,-5043.73080489,0.00044363,3]
[356555247,1742655032586,-3370.86206098,0.0004437,3]
[356555248,1742655032598,-263.81344116,0.0004437,3]
[356555249,1742655032614,-16540.24771746,0.0004437,3]
[356555250,1742655032623,-500.90196486,0.00044373,10]
[356555251,1742655032633,-155.29464908,0.00044373,10]
[356555252,1742655032642,-300.74080496,0.00044373,10]
[356555253,1742655032652,-3653.22195107,0.0004438,3]
[356555254,1742655032672,-6160.0,0.0004438,3]
[356555255,1742655037915,-176.55843226,0.00043998,120]
[356555256,1742655037925,-358.26950327,0.00043998,120]
[356555257,1742655037935,-193.43840682,0.00043998,120]
[356555258,1742655037944,-15571.93365765,0.0004438,3]
[356555259,1742655037956,-1647.05674392,0.0004438,3]
[356555269,1742655040053,-621.3566617,0.0004438,3]
[356555270,1742655040096,-7652.54661986,0.0004438,3]
[356555271,1742655040107,-5043.73080489,0.0004438,3]
[356555272,1742655040116,-2053.2476,0.0004439,2]
[356555273,1742655040126,-7419.7846,0.0004439,2]
[356555274,1742655040135,-11189.7478621,0.0004439,2]
[356555275,1742655040146,-1781.137005,0.0004439,2]
[356555276,1742655040158,-1363.68834929,0.0004439,2]
[356555277,1742655040169,-4128.55089192,0.0004439,2]
[356555278,1742655040180,-1516.91232355,0.0004439,2]
[356555279,1742655040192,-6394.4927787,0.0004439,2]
[356555280,1742655040279,-0.01784594,0.0004439,2]
[356555281,1742655040362,-1736.64885013,0.0004439,2]
[356555282,1742655040400,-25939.94753,0.0004439,2]
[356555283,1742655040436,-3798.43220689,0.0004439,2]
[356555284,1742655040448,-1552.91435648,0.0004439,2]
[356555285,1742655040457,-500.0,0.0004439,2]
[356555286,1742655040467,-5000.0,0.000444,120]
[356555287,1742655040476,-158.8258547,0.000444,19]
[356555288,1742655040485,-190.16193828,0.000444,120]
[356555289,1742655040495,-189.56153692,0.000444,2]
[356555290,1742655040504,-2427.32557662,0.000444,2]
[356555291,1742655040513,-1940.59163909,0.00044451,3]
[356555296,1742655043054,-11271.87373165,0.00044451,3]
[356555299,1742655044711,-500.0,0.00044451,3]
[356555300,1742655045916,-1418.72704396,0.00044451,3]
[356555301,1742655045926,-5043.73080489,0.00044469,3]
[356555302,1742655045935,-153.18958783,0.00044473,10]
[356555303,1742655045945,-500.0,0.00044473,10]
[356555304,1742655045955,-163.31084866,0.00044473,10]
[356555305,1742655045964,-271.17501291,0.00044473,10]
[356555306,1742655045973,-500.32967117,0.00044473,10]
[356555307,1742655046130,-502.09807528,0.00044473,10]
[356555308,1742655046140,-500.0,0.00044473,10]
[356555309,1742655046151,-152.20791686,0.00044473,10]
[356555310,1742655046160,-5043.73080489,0.00044489,3]
[356555311,1742655046170,-666.0,0.00044489,30]
[356555312,1742655046180,-11478.00227836,0.0004449,3]
[356555313,1742655046193,-422.50332,0.0004449,3]
[356555314,1742655046210,-435.489995,0.0004449,3]
[356555315,1742655046227,-1447.60063062,0.0004449,3]
[356555316,1742655046239,-2293.81943032,0.0004449,3]
[356555317,1742655046251,-54379.16571255,0.0004449,3]
[356555318,1742655046264,-9847.78515924,0.0004449,3]
[356555319,1742655046278,-5787.99684675,0.0004449,3]
[356555320,1742655046342,-143.939627,0.0004449,3]
[356555321,1742655046363,-957.28164627,0.0004449,3]
[356555322,1742655046384,-7039.19619509,0.0004449,3]
[356555323,1742655046397,-1598.1044517,0.0004449,3]
[356555324,1742655046407,-32838.4895583,0.0004449,3]
[356555325,1742655046420,-499.95792,0.0004449,3]
[356555326,1742655046432,-1899.26155912,0.0004449,3]
[356555327,1742655046448,-404.49355223,0.0004449,3]
[356555328,1742655046459,-10570.64249631,0.0004449,3]
[356555329,1742655046471,-1475.97927749,0.0004449,3]
[356555330,1742655046482,-594.30000046,0.0004449,3]
[356555331,1742655046493,-5370.57155128,0.0004449,3]
[356555332,1742655046506,-10826.3748762,0.0004449,3]
[356555347,1742656232292,-155.51,0.00026849,2]
[356555348,1742656232302,-592.225,0.00039247,2]
[356555349,1742656232311,-530.05,0.0004141,2]
[356555350,1742656232322,-240.47916764,0.00043256,2]
[356555351,1742656232331,-282.28129383,0.000433,2]
[356555352,1742656232341,-240.47916763,0.00043325,2]
[356555353,1742656232351,-226.48,0.00043356,120]
[356555354,1742656232362,-206.72,0.00043372,2]
[356555355,1742656232373,-508.75,0.000434,120]
[356555356,1742656232382,-150.0,0.00043426,7]
[356555357,1742656232392,-1686.32,0.00043439,2]
[356555358,1742656232403,-250.0,0.00043459,2]
[356555359,1742656232413,-530.05,0.00043674,2]
[356555360,1742656232422,-1000.0,0.00043712,2]
[356555361,1742656232431,-550.0,0.00043899,5]
[356555362,1742656232441,-2283.2874,0.000439,2]
[356555363,1742656232451,-1000.0,0.000439,2]
[356555364,1742656232460,-208.60506939,0.000439,9]
[356555365,1742656232469,-488.01,0.00043941,2]
[356555366,1742656232478,-200.0,0.00044,120]
[356555367,1742656232488,-171.51,0.00044,120]
[356555368,1742656232497,-434.38600223,0.0004426,2]
[356555369,1742656232507,-449.6764,0.000443,7]
[356555370,1742656232517,-7484.185688,0.0004439,2]
[356555371,1742656232526,-1429.6333,0.0004439,2]
[356555372,1742656232536,-6647.5422,0.0004439,2]
[356555373,1742656232545,-8642.80344228,0.00044399,15]
[356555374,1742656232555,-1059.552,0.000444,2]
[356555375,1742656232564,-780.8071,0.000444,2]
[356555377,1742656232574,-275.81555331,0.000444,15]
[356555378,1742656232584,-5881.0674,0.000444,2]
[356555379,1742656232594,-368.7964,0.000444,2]
[356555380,1742656232604,-813.797,0.000444,70]
[356555381,1742656232614,-5000.0,0.000444,120]
[356555382,1742656232623,-150.0,0.000444,4]
[356555383,1742656232634,-535.42397986,0.000444,16]
[356555384,1742656232643,-170.36476687,0.000444,28]
[356555386,1742656232652,-500.0,0.00044473,10]
[356555388,1742656232661,-1000.0,0.00044483,120]
[356555389,1742656232670,-900.0,0.00044484,120]
[356555391,1742656232680,-1300.0,0.00044485,120]
[356555393,1742656232690,-800.0,0.00044486,120]
[356555395,1742656232699,-1200.0,0.00044487,120]
[356555397,1742656232708,-2500.0,0.00044488,120]
[356555399,1742656232718,-2500.0,0.00044489,120]
[356555401,1742656232727,-1653.95,0.00044489,120]
[356555403,1742656232735,-684.09297559,0.0004449,7]
[356555404,1742656232748,-713.33020746,0.0004449,7]
[356555405,1742656232762,-267.57816748,0.0004449,7]
[356555406,1742656232773,-334.99864947,0.0004449,7]
[356555407,1742656232783,-200.0,0.0004449,7]
[356555408,1742656232791,-2539.86722691,0.0004449,3]
[356555409,1742656232977,-591.03545009,0.0004449,3]
[356555414,1742656237985,-3999.84,0.0004449,3]
[356555415,1742656238107,-439.215,0.0004449,3]
[356555416,1742656238119,-453.79779083,0.0004449,3]
[356555417,1742656238228,-464.72444094,0.0004449,3]
[356555419,1742656240417,-24843.69999999,0.0004449,3]
[356555450,1742656246165,-434.63359168,0.0004449,3]
[356555451,1742656246290,-739.34634792,0.0004449,3]
[356555452,1742656246489,-355.64993399,0.0004449,3]
[356555458,1742656436734,-300.0,0.00033834,5]
[356555463,1742657108002,20000.0,0.00012,2]
[356555468,1742657154273,3273.77370183,6.94e-05,2]
[356555469,1742657154297,2171.55052654,6.94e-05,2]
[356555470,1742657161569,1102.22317529,8e-05,2]
[356555471,1742657161590,822.85908324,8e-05,2]
[356555474,1742657192598,619.92,0.00025,60]
[356555475,1742657230988,443.0,0.00031703,120]
[356555476,1742657246024,300.0,0.000113,4]
[356555477,1742657248129,700.0,0.000114,4]
[356555478,1742657249275,-194.72166514,0.00011899,2]
[356555479,1742657250234,1100.0,0.000115,4]
[356555480,1742657252331,1500.0,0.000116,4]
[356555481,1742657254433,1900.0,0.000117,4]
[356555482,1742657256572,300.0,0.000118,4]
[356555483,1742657258671,300.0,0.000119,4]
[356555500,1742657400651,-2873.5,0.00011999,2]
[356555501,1742657400674,-1000.0,0.00011999,2]
[356555502,1742657400695,-1000.0,0.00011999,2]
[356555503,1742657400717,-5126.5,0.00012,2]
[356555504,1742657402114,-10000.0,0.00012,2]
[356555505,1742657406660,-10000.0,0.00012,2]
[356555506,1742657407220,-10000.0,0.00012,2]
[356555507,1742657407747,-10000.0,0.00012,2]
[356555508,1742657408250,-10000.0,0.00012,2]
[356555509,1742657408676,-10000.0,0.00012,2]
[356555510,1742657409192,-10000.0,0.00012,2]
[356555511,1742657409587,-10000.0,0.00012,2]
[356555512,1742657410080,-10000.0,0.00012,2]
[356555513,1742657410586,-10000.0,0.00012,2]
[356555514,1742657411030,-10000.0,0.00012,2]
[356555515,1742657411439,-10000.0,0.00012,2]
[356555516,1742657411945,-10000.0,0.00012,2]
[356555517,1742657412387,-10000.0,0.00012,2]
[356555518,1742657412857,-10000.0,0.00012,2]
[356555519,1742657413338,-10000.0,0.00012,2]
[356555520,1742657413868,-10000.0,0.00012,2]
[356555521,1742657414181,-10000.0,0.00012,2]
[356555522,1742657414623,-10000.0,0.00012,2]
[356555523,1742657415074,-10000.0,0.00012,2]
[356555524,1742657415687,-10000.0,0.00012,2]
[356555525,1742657415965,-10000.0,0.00012,2]
[356555526,1742657416557,-10000.0,0.00012,2]
[356555527,1742657416962,-10000.0,0.00012,2]
[356555528,1742657417443,-10000.0,0.00012,2]
[356555529,1742657417700,-10000.0,0.00012,2]
[356555530,1742657418127,-10000.0,0.00012,2]
[356555531,1742657418765,-10000.0,0.00012,2]
[356555532,1742657419230,-10000.0,0.00012,2]
[356555533,1742657419702,-10000.0,0.00012,2]
[356555534,1742657420142,-10000.0,0.00012,2]
[356555535,1742657420588,-10000.0,0.00012,2]
[356555536,1742657421058,-10000.0,0.00012,2]
[356555537,1742657421575,-10000.0,0.00012,2]
[356555538,1742657421787,-10000.0,0.00012,2]
[356555539,1742657422295,-10000.0,0.00012,2]
[356555540,1742657422764,-10000.0,0.00012,2]
[356555541,1742657423196,-10000.0,0.00012,2]
[356555542,1742657423904,-10000.0,0.00012,2]
[356555543,1742657424323,-10000.0,0.00012,2]
[356555544,1742657424819,-10000.0,0.00012,2]
[356555545,1742657425195,-10000.0,0.00012,2]
[356555546,1742657425742,-10000.0,0.00012,2]
[356555547,1742657426366,-10000.0,0.00012,2]
[356555548,1742657426898,-10000.0,0.00012,2]
[356555549,1742657427400,-10000.0,0.00012,2]
[356555554,1742657432288,-1282.82049948,0.00012,2]
[356555556,1742657432300,-467.06727,0.00012,2]
[356555557,1742657432431,-430.25086577,0.00012,2]
[356555558,1742657432443,-32273.81153215,0.00012,2]
[356555576,1742657438224,-4293.75,0.00012,2]
[356555577,1742657438236,-1995.70000001,0.00012,2]
[356555578,1742657438247,-969.9425414,0.00012,2]
[356555579,1742657438345,-781.5493734,0.00012,2]
[356555580,1742657438357,-511.64502855,0.00012,2]
[356555581,1742657438377,-1272.01274265,0.00012,2]
[356555582,1742657438409,-109929.78753422,0.00012,2]
[356555636,1742657440499,-771.144,0.00012,2]
[356555637,1742657440511,-16808.10000001,0.00012,2]
[356555638,1742657440643,-414.54,0.00012,2]
[356555639,1742657440655,-1466.43173063,0.00012,2]
[356555640,1742657440666,-74758.18137366,0.00012,2]
[356555641,1742657440677,-2365.31834024,0.00012,2]
[356555669,1742657444961,-1821.82014999,0.00012,2]
[356555670,1742657444973,-873.04153788,0.00012,2]
[356555671,1742657444985,-276.07196702,0.00012,2]
[356555672,1742657444996,-12982.83995627,0.00012,2]
[356555673,1742657445008,-374.43122639,0.00012,2]
[356555674,1742657445020,-2534.52691335,0.00012,2]
[356555675,1742657445045,-4815.8139155,0.00012,2]
[356555676,1742657445057,-1033.00001,0.00012,2]
[356555677,1742657445072,-4727.92676812,0.00012,2]
[356555678,1742657445085,-3525.24219867,0.00012,2]
[356555683,1742657446539,-1371.9392316,0.00012,2]
[356555684,1742657446572,-996.89109693,0.00012,2]
[356555685,1742657446697,-2307.59213146,0.00012,2]
[356555693,1742657458193,-202.45,0.00012,2]
[356555696,1742657647599,150.0,7.945e-05,2]
[356555700,1742657685861,-150.0,0.00011999,2]
[356555701,1742657685884,-137.93438391,0.00011999,2]
[356555703,1742657707682,428.12672573,0.00031703,30]
[356555704,1742657908732,-152.91151117,0.00011972,2]
[356555705,1742657918638,-1092.81,0.0001176,2]
[356555706,1742657918659,-209.093,0.0001176,2]
[356555707,1742657918680,-1465.30553991,0.00011972,2]
[356555708,1742657918702,-150.0,0.00011999,2]
[356555709,1742657918722,-273.39454735,0.00011999,2]
[356555710,1742657918744,-721745.39691274,0.00012,2]
[356555711,1742657919394,-250.01656051,0.00012,2]
[356555712,1742657939283,1020.01294583,0.00011999,3]
[356555713,1742657939321,1020.01294583,0.00011999,3]
[356555714,1742657939358,1020.01294587,0.00011999,3]
[356555715,1742657939391,1020.01294583,0.00011999,3]
[356555716,1742657939431,1020.01294583,0.00011999,3]
[356555717,1742657939487,1020.01294583,0.00011999,3]
[356555718,1742657939550,1020.01294583,0.00011999,3]
[356555719,1742657939600,1020.01294583,0.00011999,3]
[356555720,1742657940011,1020.01294583,0.00011999,3]
[356555721,1742657973655,-200.81777069,0.00011972,2]
[356555722,1742657973679,-211.35942715,0.00011972,2]
[356555723,1742657973701,-34026.0,0.00011973,2]
[356555724,1742657973722,-150.0,0.00011999,2]
[356555725,1742657973745,-237.34838045,0.00011999,2]
[356555726,1742657973768,-275535.47442171,0.00012,2]
[356555727,1742657973979,164.71884,0.00012,6]
[356555728,1742658012677,-281.61309658,0.00012,2]
[356555729,1742658024151,400.0,0.000114,4]
[356555730,1742658026248,900.0,0.000115,4]
[356555731,1742658028349,1400.0,0.000116,4]
[356555732,1742658030446,1800.0,0.000117,4]
[356555733,1742658032549,2300.0,0.000118,4]
[356555735,1742658034656,400.0,0.000119,4]
[356555736,1742658041721,-109097.0,0.00012,2]
[356555737,1742658092418,-300.0,0.00011999,2]
[356555738,1742658092443,-705602.0,0.00012,2]
[356555739,1742658134918,-250.00582104,0.00011872,2]
[356555740,1742658171703,-94.4620897,0.00011872,2]
[356555741,1742658171724,-150.0,0.00011971,2]
[356555742,1742658171744,-211.35942715,0.00011972,2]
[356555743,1742658171766,-166915.27178785,0.00011972,2]
[356555744,1742658171787,-168.17736737,0.00011972,2]
[356555745,1742658171809,-154.88018589,0.00011999,2]
[356555746,1742658171830,-283.69560742,0.00011999,2]
[356555747,1742658171859,-543677.15353462,0.00012,2]
[356555748,1742658184106,-1651.5187988,0.00011872,2]
[356555749,1742658210637,-296.89615342,0.00011812,2]
[356555750,1742658225855,-1953.30472058,0.00011812,2]
[356555751,1742658225878,-6335.21191645,0.00011872,2]
[356555752,1742658225898,-211.35942715,0.00011905,2]
[356555753,1742658225920,-7986.73071523,0.00011905,2]
[356555754,1742658225941,-7986.73071523,0.00011939,2]
[356555755,1742658225963,-7986.73071523,0.00011972,2]
[356555756,1742658225984,-300.63548143,0.00011973,2]
[356555757,1742658226007,-300.0,0.00011999,2]
[356555758,1742658226030,-137091.2963087,0.00012,2]
[356555759,1742658279362,164.71885,0.0001938,22]
[356555760,1742658279660,25.06910973,0.0002188,27]
[356555761,1742658298310,-446.19734849,0.00011903,2]
[356555762,1742658298333,-3055.62993612,0.00011903,2]
[356555763,1742658298356,-300.0,0.00011999,2]
[356555764,1742658298379,-362875.17271539,0.00012,2]
[356555773,1742658388513,-200.81777069,0.00011903,2]
[356555774,1742658388536,-3799.5374317,0.00011903,2]
[356555775,1742658388559,-296.8146119,0.00011903,2]
[356555776,1742658388581,-150.0,0.00011999,2]
[356555777,1742658388604,-300.0,0.00011999,2]
[356555778,1742658388626,-687611.83018571,0.00012,2]
[356555779,1742658444512,600.0,0.000115,4]
[356555780,1742658446618,1200.0,0.000116,4]
[356555781,1742658448712,1900.0,0.000117,4]
[356555782,1742658450809,2500.0,0.000118,4]
[356555783,1742658452919,3200.0,0.000119,4]
[356555784,1742658460192,-546.90343115,0.00011903,2]
[356555785,1742658460213,-267.75702758,0.00011903,2]
[356555786,1742658460234,-153.35011964,0.00011903,2]
[356555787,1742658460257,-7974.47708306,0.00011903,2]
[356555788,1742658460279,-81357.51233857,0.00012,2]
[356555789,1742658516357,600.0,0.000115,4]
[356555790,1742658518459,1300.0,0.000116,4]
[356555791,1742658520555,2000.0,0.000117,4]
[356555792,1742658522794,2700.0,0.000118,4]
[356555793,1742658524902,3300.0,0.000119,4]
[356555794,1742658540488,-21549.52693523,0.00011903,2]
[356555795,1742658540516,-327.44274822,0.00011903,2]
[356555796,1742658540548,-364.60228742,0.00011903,2]
[356555797,1742658540573,-150.0,0.00011999,2]
[356555798,1742658540598,-210.41484617,0.00011999,2]
[356555799,1742658540631,-22398.01318296,0.00012,2]
[356555822,1742658631788,-300.0,0.00011902,2]
[356555823,1742658631798,-178.50468506,0.00011903,2]
[356555824,1742658631807,-5990.5113159,0.00011903,2]
[356555825,1742658631816,-31544.0,0.00011973,2]
[356555826,1742658631828,-756.59145256,0.00011999,2]
[356555827,1742658631838,-244.71720232,0.00012,2]
[356555828,1742658631850,-546.452145,0.00012,2]
[356555829,1742658631879,-399.42903,0.00012,2]
[356555830,1742658631890,-581164.21811058,0.00012,2]
[356555831,1742658631969,-578.6525812,0.00012,2]
[356555832,1742658632038,-278.37875813,0.00012,2]
[356555845,1742658637478,-720.8493586,0.00012,2]
[356555846,1742658637541,-245.1097316,0.00012,2]
[356555847,1742658637563,-732.80267936,0.00012,2]
[356555848,1742658637658,-58.44912002,0.00012,2]
[356555849,1742658637672,-2716.66522628,0.00012,2]
[356555850,1742658637683,-1042.82955653,0.00012,2]
[356555851,1742658637724,-465761.49323903,0.00012,2]
[356555852,1742658637781,-1513.10873379,0.00012,2]
[356555853,1742658639705,-1907.61631091,0.00012,2]
[356555854,1742658639720,-4287.36,0.00012,2]
[356555855,1742658639731,-3070.5981233,0.00012,2]
[356555856,1742658639742,-4277.0,0.00012,2]
[356555857,1742658639848,-1815.97042121,0.00012,2]
[356555858,1742658639881,-267787.90314826,0.00012,2]
[356555859,1742658639986,-0.00268924,0.00012,2]
[356555860,1742658639997,-49575.1484685,0.00012,2]
[356555861,1742658640060,-108.95830837,0.00012,2]
[356555862,1742658640082,-42.28390998,0.00012,2]
[356555863,1742658640113,-53047.85021591,0.00012,2]
[356555864,1742658641031,-483.42232317,0.00012,2]
[356555953,1742658644061,-4091.64891824,0.00012,2]
[356555954,1742658644153,-7086.15881557,0.00012,2]
[356555956,1742658645817,-90.56832482,0.00012,2]
[356555957,1742658645939,-309.43438746,0.00012,2]
[356555958,1742658646178,-26388.66241022,0.00012,2]
[356555959,1742658646224,-178.92676179,0.00012,2]
[356555960,1742658646235,-77031.93148529,0.00012,2]
[356555972,1742658965461,158.45157,0.00012,6]
[356555973,1742659134530,-341.34834121,0.00011597,2]
[356555974,1742659134553,-467.06586279,0.0001166,2]
[356555975,1742659134576,-1407.255,0.0001176,2]
[356555976,1742659134598,-187.247,0.0001176,2]
[356555977,1742659134619,-467.06586278,0.00011802,2]
[356555978,1742659134640,-163.33020747,0.00011803,2]
[356555979,1742659134661,-150.0,0.00011902,2]
[356555980,1742659134684,-151.15659944,0.00011903,2]
[356555981,1742659134706,-5073.79549175,0.00011903,2]
[356555982,1742659134728,-158.05313192,0.00011903,2]
[356555983,1742659134748,-243.06819162,0.00011903,2]
[356555984,1742659134772,-178.50468505,0.00011903,2]
[356555985,1742659134792,-776.53154448,0.00011903,2]
[356555986,1742659134813,-327.44274822,0.00011903,2]
[356555987,1742659134834,-500.0,0.00011973,2]
[356555988,1742659134855,-180.44802466,0.00011973,2]
[356555989,1742659134876,-500.45202983,0.00011973,2]
[356555990,1742659134898,-500.0,0.00011973,2]
[356555991,1742659134918,-666.0,0.00011999,2]
[356555992,1742659134939,-254.84252769,0.00011999,2]
[356555993,1742659134959,-500.0,0.00011999,2]
[356555994,1742659134981,-500.0,0.00011999,2]
[356555995,1742659135001,-500.0,0.00011999,2]
[356555996,1742659135022,-500.0,0.00011999,2]
[356555997,1742659135043,-500.0,0.00011999,2]
[356555998,1742659135065,-205.10719602,0.00011999,2]
[356555999,1742659135087,-3679483.82836223,0.00012,2]
[356556000,1742659208230,4053.3474161,0.00011995,2]
[356556001,1742659257225,444.92,0.00024724,120]
[356556002,1742659341696,3340.8795951,0.00011995,2]
[356556003,1742659397162,214.4954414,0.00011995,2]
[356556004,1742659397661,568.58649581,0.00031653,120]
[356556005,1742659401965,445.54612211,0.00031653,120]
[356556008,1742659557760,3405.5238689,0.00011995,2]
[356556010,1742659665789,2704.8800827,0.00011995,2]
[356556011,1742659720323,178.7462012,0.00011995,2]
[356556012,1742659749209,434.57342221,0.00011538,2]
[356556022,1742659831688,-150.0,0.00012003,2]
[356556023,1742659831697,-606.43989339,0.0001268,2]
[356556024,1742659831708,-341.89010661,0.0001268,2]
[356556025,1742659831718,-842.3,0.00012681,2]
[356556026,1742659831727,-158.45157,0.0001307,9]
[356556027,1742659831737,-150.0,0.000132,2]
[356556028,1742659831746,-150.0,0.000132,2]
[356556029,1742659831755,-158.45157,0.0001432,11]
[356556030,1742659831764,-300.0,0.0001552,2]
[356556031,1742659831773,-11323.66702131,0.00015521,2]
[356556032,1742659831782,-158.45158,0.0001557,14]
[356556033,1742659831791,-250.93,0.00016422,2]
[356556034,1742659831800,-420.0,0.00016977,2]
[356556035,1742659831810,-250.0,0.00018081,2]
[356556036,1742659831819,-150.0,0.00018108,7]
[356556037,1742659831828,-156.39,0.00018205,2]
[356556038,1742659831837,-250.93,0.00018474,2]
[356556039,1742659831847,-776.53154442,0.00018518,2]
[356556040,1742659831856,-160.8,0.000186,2]
[356556041,1742659831866,-500.0,0.0001888,2]
[356556042,1742659831875,-5681.27545519,0.00019,2]
[356556043,1742659831890,-2529.75271132,0.00019,2]
[356556053,1742659837570,-2211.17218273,0.00019,2]
[356556054,1742659837580,-165.57524827,0.00019,2]
[356556055,1742659837589,-300.0,0.00019029,2]
[356556056,1742659837599,-338.94,0.00019029,2]
[356556057,1742659837609,-338.94,0.00019069,2]
[356556058,1742659837618,-338.94,0.00019109,2]
[356556059,1742659837628,-338.94,0.00019149,2]
[356556060,1742659837637,-200.33315131,0.00019189,2]
[356556061,1742659837648,-138.60684869,0.00019189,2]
[356556062,1742659837658,-338.94,0.00019229,2]
[356556063,1742659837667,-338.94,0.00019269,2]
[356556064,1742659837676,-338.94,0.00019309,2]
[356556065,1742659837685,-22.0567367,0.00019349,2]
[356556066,1742659837705,-316.01150826,0.00019349,2]
[356556068,1742659839814,-0.87175504,0.00019349,2]
[356556069,1742659839823,-338.94,0.00019389,2]
[356556070,1742659839832,-338.94,0.00019429,2]
[356556071,1742659839841,-338.94,0.00019469,2]
[356556072,1742659839850,-338.94,0.00019509,2]
[356556073,1742659839860,-338.94,0.00019549,2]
[356556074,1742659839869,-338.94,0.0001959,2]
[356556075,1742659839878,-338.94,0.0001963,2]
[356556076,1742659839887,-338.94,0.0001967,2]
[356556077,1742659839896,-614.90837523,0.00019686,2]
[356556078,1742659840130,-246.00162477,0.00019686,2]
[356556079,1742659840140,-338.94,0.0001971,2]
[356556080,1742659840150,-338.94,0.0001975,2]
[356556081,1742659840161,-338.94,0.0001979,2]
[356556082,1742659840171,-173.48,0.00019965,2]
[356556083,1742659840181,-627.89807246,0.0002,4]
[356556084,1742659840191,-1497.24,0.00020477,2]
[356556085,1742659840200,-250.93,0.00020527,2]
[356556086,1742659840209,-184.69,0.00020985,2]
[356556087,1742659840219,-475.84,0.00021426,2]
[356556088,1742659840228,-498.19,0.00021459,2]
[356556089,1742659840238,-7908.95619193,0.00021531,2]
[356556120,1742659842899,-967.16380807,0.00021531,2]
[356556122,1742659842908,-166.81,0.00021545,2]
[356556124,1742659842918,-1221.23,0.00021728,2]
[356556126,1742659842929,-600.0,0.00021748,2]
[356556128,1742659842938,-200.0,0.00021831,2]
[356556130,1742659842947,-200.0,0.0002188,2]
[356556133,1742659842957,-200.0,0.0002188,2]
[356556135,1742659842966,-500.0,0.00021939,2]
[356556137,1742659842976,-860.91,0.0002195,2]
[356556139,1742659842985,-444.92,0.00021977,2]
[356556141,1742659842994,-200.0,0.00022099,2]
[356556143,1742659843004,-200.0,0.00022099,2]
[356556145,1742659843014,-1000.0,0.00022306,2]